bitfinex/quotes_BTCUSD_20250903
["timestamp","ask_amount","ask_price","bid_price","bid_amount"]
[1756911610818,0.65485168,112490.0,112480.0,0.18380938]
[1756911611038,0.0002,112490.0,112480.0,1.64806282]
[1756911611271,0.0002,112490.0,112480.0,1.66867559]
[1756911611484,0.0002,112490.0,112480.0,0.88089939]
[1756911611745,0.0002,112490.0,112480.0,0.88189939]
[1756911611934,0.0002,112490.0,112480.0,0.88289939]
[1756911612407,0.0002,112490.0,112480.0,0.88189939]
[1756911612613,0.0002,112490.0,112480.0,1.49759744]
[1756911612855,0.01121652,112510.0,112500.0,0.17777777]
[1756911613038,0.01121652,112510.0,112500.0,0.35998778]
[1756911613250,0.19102849,112510.0,112500.0,0.33645777]
[1756911613479,0.18825096,112510.0,112500.0,0.17777777]
[1756911613895,0.01048899,112510.0,112500.0,0.17777777]
[1756911614121,0.01326652,112510.0,112500.0,0.1779169]
[1756911614364,0.01022652,112510.0,112500.0,0.1800769]
[1756911614600,0.19102849,112510.0,112500.0,0.1779169]
[1756911614832,0.18825096,112510.0,112500.0,0.1789169]
[1756911615098,0.18825096,112510.0,112500.0,0.3385169]
[1756911615300,1.052425,112510.0,112500.0,0.00213913]
[1756911615907,1.052425,112510.0,112500.0,0.00113913]
[1756911616332,0.77872695,112510.0,112500.0,0.00113913]
[1756911616548,1.392425,112510.0,112500.0,0.00113913]
[1756911616988,1.4191526,112510.0,112500.0,0.00113913]
[1756911617212,0.80545455,112510.0,112500.0,0.00113913]
[1756911617450,1.4191526,112510.0,112500.0,0.00113913]
[1756911617646,1.51106859,112510.0,112500.0,0.00213913]
[1756911617910,1.51106859,112510.0,112500.0,0.00113913]
[1756911618154,1.51106859,112510.0,112500.0,0.00013913]
[1756911618374,1.4191526,112510.0,112500.0,0.00013913]
[1756911618585,1.4191526,112510.0,112500.0,0.00113913]
[1756911618777,0.80545455,112510.0,112500.0,0.00113913]
[1756911618911,1.4191526,112510.0,112500.0,0.00113913]
[1756911619125,1.51106859,112510.0,112500.0,0.00013913]
[1756911619761,1.4191526,112510.0,112500.0,0.00013913]
[1756911619981,1.47509142,112510.0,112500.0,0.00013913]
[1756911620386,1.48339177,112510.0,112500.0,0.00013913]
[1756911621228,1.48539177,112510.0,112500.0,0.00013913]
[1756911622035,0.17782519,112470.0,112460.0,0.09699632]
[1756911622249,1.38437774,112470.0,112460.0,0.07368612]
[1756911622459,1.38668923,112470.0,112460.0,0.07368612]
[1756911622779,0.61483118,112470.0,112460.0,0.07368612]
[1756911622984,0.43700599,112470.0,112460.0,0.25368713]
[1756911623200,0.43191599,112470.0,112460.0,0.25468713]
[1756911623370,0.20759977,112480.0,112470.0,0.17782519]
[1756911623742,0.20759977,112480.0,112470.0,0.00216]
[1756911623743,0.79972576,112480.0,112470.0,0.00216]
[1756911623927,0.17782519,112470.0,112460.0,0.18214082]
[1756911624143,0.17782519,112470.0,112460.0,0.18430082]
[1756911624357,0.17782519,112470.0,112460.0,0.20775083]
[1756911624358,0.1806037,112470.0,112460.0,0.20775083]
[1756911624570,0.1806037,112470.0,112460.0,0.20975083]
[1756911624871,0.1806037,112470.0,112460.0,0.20875083]
[1756911625109,0.17782519,112470.0,112460.0,0.20675083]
[1756911625326,0.79463576,112480.0,112470.0,0.17782519]
[1756911625540,0.79668576,112480.0,112470.0,0.00216]
[1756911625770,0.79972576,112480.0,112470.0,0.00216]
[1756911625956,0.17782519,112470.0,112460.0,0.20759083]
[1756911626170,0.17782519,112470.0,112460.0,0.20975083]
[1756911626618,0.1856937,112470.0,112460.0,0.02458982]
[1756911626845,0.79661324,112470.0,112460.0,0.00013981]
[1756911627052,0.88852923,112470.0,112460.0,0.00013981]
[1756911627264,1.22852923,112470.0,112460.0,0.00013981]
[1756911627485,1.32044522,112470.0,112460.0,0.00013981]
[1756911627689,1.22852923,112470.0,112460.0,0.00013981]
[1756911628095,1.22852923,112470.0,112460.0,0.00113981]
[1756911628713,0.61483118,112470.0,112460.0,0.00113981]
[1756911628870,1.22852923,112470.0,112460.0,0.00113981]
[1756911630083,0.61483118,112470.0,112460.0,0.00113981]
[1756911630297,1.38632923,112470.0,112460.0,0.00113981]
[1756911630731,1.52592176,112470.0,112460.0,0.00113981]
[1756911630943,1.56092176,112470.0,112460.0,0.00113981]
[1756911631603,1.56910603,112470.0,112460.0,0.00013981]
[1756911631959,1.41142603,112470.0,112460.0,0.00013981]
[1756911632322,1.57310603,112470.0,112460.0,0.00013981]
[1756911632556,0.17788846,112430.0,112420.0,0.07354631]
[1756911632770,1.383962,112430.0,112420.0,0.07368614]
[1756911632984,1.3862725,112430.0,112420.0,0.07368614]
[1756911633201,1.41302008,112430.0,112420.0,0.07368614]
[1756911633611,1.41294008,112430.0,112420.0,0.00013983]
[1756911634409,1.25534008,112430.0,112420.0,0.00013983]
[1756911634610,1.41282008,112430.0,112420.0,0.00113983]
[1756911634841,0.79912203,112430.0,112420.0,0.00213983]
[1756911635036,1.4216409,112430.0,112420.0,0.00213983]
[1756911635301,1.4216009,112430.0,112420.0,0.00113983]
[1756911635512,1.4216009,112430.0,112420.0,0.00013983]
[1756911635731,1.4215209,112430.0,112420.0,0.00013983]
[1756911635939,1.4215209,112430.0,112420.0,0.00229983]
[1756911636154,0.64742285,112430.0,112420.0,0.00229983]
[1756911636331,1.4184409,112430.0,112420.0,0.00229983]
[1756911636575,1.4214809,112430.0,112420.0,0.00013983]
[1756911637234,1.4214809,112430.0,112420.0,0.00229983]
[1756911637457,1.4184409,112430.0,112420.0,0.00229983]
[1756911638178,0.46748439,112430.0,112420.0,0.18020411]
[1756911638403,0.52670928,112430.0,112420.0,0.18336411]
[1756911638625,0.62364527,112430.0,112420.0,0.00229983]
[1756911638877,1.29363252,112430.0,112420.0,0.00013983]
[1756911639459,1.45075252,112430.0,112420.0,0.00013983]
[1756911640397,1.38944332,112430.0,112420.0,0.18005411]
[1756911640660,0.77786527,112430.0,112420.0,0.00214983]
[1756911640888,0.78083527,112430.0,112420.0,0.00013983]
[1756911641333,1.39453332,112430.0,112420.0,0.00013983]
[1756911642256,1.41547214,112430.0,112420.0,0.00013983]
[1756911642474,1.50738813,112430.0,112420.0,0.00013983]
[1756911643324,1.50938813,112430.0,112420.0,0.00013983]
[1756911644190,1.50938813,112430.0,112420.0,0.00214983]
[1756911644191,0.62262527,112430.0,112420.0,0.00214983]
[1756911644405,0.44473681,112430.0,112420.0,0.00214983]
[1756911644613,0.77762527,112430.0,112420.0,0.00214983]
[1756911644825,0.77762527,112430.0,112420.0,0.18328411]
[1756911644826,0.77562527,112430.0,112420.0,0.18328411]
[1756911645050,0.77962527,112430.0,112420.0,0.00537983]
[1756911645275,0.78174527,112430.0,112420.0,0.00214983]
[1756911645495,1.23741332,112430.0,112420.0,0.00013983]
[1756911645788,1.48628931,112430.0,112420.0,0.00013983]
[1756911646222,1.50722813,112430.0,112420.0,0.00013983]
[1756911647438,1.57562813,112430.0,112420.0,0.00013983]
[1756911648055,1.57762813,112430.0,112420.0,0.00013983]
[1756911648270,1.57962813,112430.0,112420.0,0.00013983]
[1756911648467,1.57762813,112430.0,112420.0,0.00013983]
[1756911648675,1.57562813,112430.0,112420.0,0.00013983]
[1756911649015,1.57762813,112430.0,112420.0,0.00013983]
[1756911649251,1.60337879,112430.0,112420.0,0.00013983]
[1756911649500,1.61973058,112430.0,112420.0,0.00013983]
[1756911649706,1.62173058,112430.0,112420.0,0.00013983]
[1756911649928,0.17795177,112390.0,112380.0,0.07354631]
[1756911650140,1.3830663,112390.0,112380.0,0.07401655]
[1756911650362,1.38236581,112390.0,112380.0,0.07401655]
[1756911650572,0.76866776,112390.0,112380.0,0.07602655]
[1756911650779,1.38533581,112390.0,112380.0,0.00047024]
[1756911651222,0.61495776,112390.0,112380.0,0.00047024]
[1756911651432,1.22865581,112390.0,112380.0,0.00348024]
[1756911651658,1.38028581,112390.0,112380.0,0.00348024]
[1756911652540,1.38240581,112390.0,112380.0,0.00348024]
[1756911653438,1.22356581,112390.0,112380.0,0.00348024]
[1756911653655,0.76662776,112390.0,112380.0,0.00671024]
[1756911653875,0.60986776,112390.0,112380.0,0.00671024]
[1756911654094,0.76650776,112390.0,112380.0,0.00348024]
[1756911654733,0.60986776,112390.0,112380.0,0.00348024]
[1756911654936,0.76646776,112390.0,112380.0,0.00671024]
[1756911655624,0.76638776,112390.0,112380.0,0.18467784]
[1756911655846,0.76638776,112390.0,112380.0,0.00348024]
[1756911656064,0.81812819,112390.0,112380.0,0.00348024]
[1756911656745,0.61198776,112390.0,112380.0,0.00348024]
[1756911656974,0.61198776,112390.0,112380.0,0.18467784]
[1756911656975,0.76634776,112390.0,112380.0,0.18467784]
[1756911657253,0.76634776,112390.0,112380.0,0.00348024]
[1756911657479,0.76846776,112390.0,112380.0,0.00348024]
[1756911657696,0.78507148,112390.0,112380.0,0.00348024]
[1756911658349,0.62859148,112390.0,112380.0,0.00348024]
[1756911658570,0.78503148,112390.0,112380.0,0.00348024]
[1756911659003,0.62647148,112390.0,112380.0,0.00348024]
[1756911659226,0.43191599,112390.0,112380.0,0.18467784]
[1756911659445,0.76634776,112390.0,112380.0,0.18467784]
[1756911659632,0.34,112390.0,112380.0,0.18467784]
[1756911660305,0.17793594,112400.0,112390.0,0.17795177]
[1756911660520,0.78569865,112400.0,112390.0,0.18319177]
[1756911660736,0.76629193,112400.0,112390.0,0.18319177]
[1756911660977,0.17795177,112390.0,112380.0,0.20611785]
[1756911661187,0.17795177,112390.0,112380.0,0.20812785]
[1756911661394,0.76629193,112400.0,112390.0,0.17795177]
[1756911661611,0.76633193,112400.0,112390.0,0.17996177]
[1756911661834,0.18684381,112410.0,112390.0,0.18319177]
[1756911662046,0.18071618,112400.0,112390.0,0.00524]
[1756911662260,0.18071618,112400.0,112390.0,0.18319177]
[1756911662469,0.18580618,112400.0,112380.0,0.24528292]
[1756911662681,0.18005594,112400.0,112390.0,0.17996177]
[1756911662889,0.18580618,112400.0,112390.0,0.00301]
[1756911663106,0.18005594,112400.0,112390.0,0.18096177]
[1756911663313,0.18171618,112400.0,112390.0,0.18096177]
[1756911663728,0.18071618,112400.0,112390.0,0.18419177]
[1756911663932,0.18283618,112400.0,112390.0,0.00301]
[1756911664142,0.32718953,112400.0,112390.0,0.00301]
[1756911664356,1.18873968,112400.0,112390.0,0.001]
[1756911664831,1.22631474,112400.0,112390.0,0.001]
[1756911665012,1.56631474,112400.0,112390.0,0.001]
[1756911666310,1.63471474,112400.0,112390.0,0.001]
[1756911666743,1.67543373,112400.0,112390.0,0.001]
[1756911667200,1.67343373,112400.0,112390.0,0.001]
[1756911667438,1.71408659,112400.0,112390.0,0.001]
[1756911667646,0.53889059,112390.0,112380.0,0.00047024]
[1756911667775,1.50899297,112390.0,112380.0,0.00047024]
[1756911667976,1.51408297,112390.0,112380.0,0.00047024]
[1756911668243,1.67088297,112390.0,112380.0,0.00047024]
[1756911668636,1.70476699,112390.0,112380.0,0.00047024]
[1756911668862,1.70476699,112390.0,112380.0,0.00251024]
[1756911669077,1.70476699,112390.0,112380.0,0.00047024]
[1756911669284,0.84421684,112390.0,112380.0,0.00047024]
[1756911669509,0.81033282,112390.0,112380.0,0.00047024]
[1756911670124,1.67288297,112390.0,112380.0,0.00047024]
[1756911671369,1.67288729,112390.0,112380.0,0.00047024]
[1756911671771,1.51608729,112390.0,112380.0,0.00251024]
[1756911671995,1.67276729,112390.0,112380.0,0.00251024]
[1756911672459,1.76468328,112390.0,112380.0,0.00047024]
[1756911673917,0.90305313,112390.0,112380.0,0.00251024]
[1756911674122,0.65453714,112390.0,112380.0,0.00251024]
[1756911674324,0.60711655,112390.0,112380.0,0.18348784]
[1756911674548,0.1586,112390.0,112380.0,0.18348784]
[1756911674774,0.002,112390.0,112380.0,0.20693785]
[1756911675179,0.002,112390.0,112380.0,0.23820454]
[1756911675599,0.001,112390.0,112380.0,0.23820454]
[1756911675804,0.002,112390.0,112380.0,0.23820454]
[1756911676007,0.001,112390.0,112380.0,0.23820454]
[1756911676210,0.67449631,112400.0,112390.0,0.17795177]
[1756911676460,0.18684381,112410.0,112400.0,0.17793594]
[1756911676661,0.7753198,112410.0,112400.0,0.17997594]
[1756911676877,0.09191599,112410.0,112400.0,0.18298594]
[1756911677116,0.24634428,112420.0,112410.0,0.17792011]
[1756911677326,0.42642027,112420.0,112410.0,0.18297011]
[1756911677769,0.18396073,112430.0,112420.0,0.17790428]
[1756911677985,0.25454826,112430.0,112420.0,0.18295428]
[1756911678192,0.43243672,112430.0,112420.0,0.18295428]
[1756911678409,0.77243672,112430.0,112420.0,0.18295428]
[1756911678612,0.43243672,112430.0,112420.0,0.18295428]
[1756911678838,0.77243672,112430.0,112420.0,0.18295428]
[1756911679032,0.77243672,112430.0,112420.0,0.18309422]
[1756911679931,0.77747672,112430.0,112420.0,0.00217994]
[1756911680557,0.78047672,112430.0,112420.0,0.00217994]
[1756911680984,0.77747672,112430.0,112420.0,0.00013994]
[1756911681193,0.78066672,112430.0,112420.0,0.00013994]
[1756911681410,0.77866672,112430.0,112420.0,0.00013994]
[1756911681621,0.78066672,112430.0,112420.0,0.00013994]
[1756911682062,0.77866672,112430.0,112420.0,0.00217994]
[1756911682281,0.77966672,112430.0,112420.0,0.00217994]
[1756911682718,0.77647672,112430.0,112420.0,0.00217994]
[1756911683316,0.77647672,112430.0,112420.0,0.18008422]
[1756911683545,0.77443672,112430.0,112420.0,0.18008422]
[1756911683757,0.50439227,112430.0,112420.0,0.18309422]
[1756911683992,0.002,112430.0,112420.0,0.18309422]
[1756911684223,0.15824,112430.0,112420.0,0.18309422]
[1756911684431,0.002,112430.0,112420.0,0.18309422]
[1756911684647,0.67411404,112440.0,112430.0,0.17788846]
[1756911684873,0.68232577,112440.0,112430.0,0.00204]
[1756911685092,0.77424176,112440.0,112430.0,0.00204]
[1756911685318,0.17788846,112430.0,112420.0,0.18105422]
[1756911685547,0.77539176,112440.0,112420.0,0.18409422]
[1756911685776,0.77220176,112440.0,112430.0,0.17788846]
[1756911685991,0.77424176,112440.0,112430.0,0.17788846]
[1756911686205,0.77743176,112440.0,112430.0,0.001]
[1756911686413,0.17788846,112430.0,112420.0,0.17804422]
[1756911686677,0.17788846,112430.0,112420.0,0.18309422]
[1756911687512,0.77539176,112440.0,112420.0,0.18409422]
[1756911687722,0.68028577,112440.0,112420.0,0.18409422]
[1756911687938,0.68347577,112440.0,112420.0,0.18509422]
[1756911688152,0.17788846,112430.0,112420.0,0.00618994]
[1756911688369,0.17992846,112430.0,112420.0,0.18108422]
[1756911688577,0.17579948,112430.0,112420.0,0.18308422]
[1756911689007,0.17579948,112430.0,112420.0,0.18008422]
[1756911689220,0.18380898,112430.0,112420.0,0.00013994]
[1756911689421,0.18102948,112430.0,112420.0,0.00013994]
[1756911689836,0.18102948,112430.0,112420.0,0.00113994]
[1756911689982,0.18102948,112430.0,112420.0,0.17904422]
[1756911690393,0.18102948,112430.0,112420.0,0.18108422]
[1756911690827,0.18102948,112430.0,112420.0,0.00317994]
[1756911691027,0.18102948,112430.0,112420.0,0.17904422]
[1756911691438,0.00204,112430.0,112420.0,0.18108422]
[1756911691644,0.18270796,112430.0,112420.0,0.18108422]
[1756911692677,0.52404577,112440.0,112430.0,0.17788846]
[1756911692874,0.77412176,112440.0,112430.0,0.17992846]
[1756911693026,0.61800176,112440.0,112430.0,0.17992846]
[1756911693230,0.77208176,112440.0,112430.0,0.17992846]
[1756911693442,0.17788846,112430.0,112420.0,0.00113994]
[1756911693654,0.18066796,112430.0,112420.0,0.17804422]
[1756911693870,0.18589796,112430.0,112420.0,0.00013994]
[1756911694195,0.18311846,112430.0,112420.0,0.00013994]
[1756911694394,0.18311846,112430.0,112420.0,0.17804422]
[1756911694601,1.04466861,112430.0,112420.0,0.00013994]
[1756911694819,1.56449409,112430.0,112420.0,0.00013994]
[1756911696133,1.72057409,112430.0,112420.0,0.00113994]
[1756911697001,1.72057409,112430.0,112420.0,0.00013994]
[1756911697212,1.72157409,112430.0,112420.0,0.00013994]
[1756911697415,1.75741409,112430.0,112420.0,0.00013994]
[1756911697640,1.75641409,112430.0,112420.0,0.00013994]
[1756911697850,1.75633409,112430.0,112420.0,0.00013994]
[1756911698032,1.65448342,112430.0,112420.0,0.00013994]
[1756911698895,1.65348342,112430.0,112420.0,0.00013994]
[1756911699106,1.50152342,112430.0,112420.0,0.00013994]
[1756911699335,1.65748342,112430.0,112420.0,0.00013994]
[1756911699535,1.74939941,112430.0,112420.0,0.00013994]
[1756911700186,1.74739941,112430.0,112420.0,0.00013994]
[1756911700389,1.74939941,112430.0,112420.0,0.00013994]
[1756911700559,1.59343941,112430.0,112420.0,0.00013994]
[1756911700765,1.74931941,112430.0,112420.0,0.00013994]
[1756911701197,1.50152342,112430.0,112420.0,0.00013994]
[1756911701397,1.65732342,112430.0,112420.0,0.00216994]
[1756911701608,1.50152342,112430.0,112420.0,0.00216994]
[1756911701821,1.50152342,112430.0,112420.0,0.00013994]
[1756911702049,1.65732342,112430.0,112420.0,0.00013994]
[1756911702281,1.66900118,112430.0,112420.0,0.00013994]
[1756911702692,1.66700118,112430.0,112420.0,0.00013994]
[1756911702920,1.66500118,112430.0,112420.0,0.00013994]
[1756911703167,1.66700118,112430.0,112420.0,0.00013994]
[1756911703379,1.50152342,112430.0,112420.0,0.00216994]
[1756911703589,0.79050327,112430.0,112420.0,0.00013994]
[1756911703823,1.65528342,112430.0,112420.0,0.00013994]
[1756911704031,1.65728342,112430.0,112420.0,0.00013994]
[1756911704449,1.74919941,112430.0,112420.0,0.00013994]
[1756911704865,1.74907941,112430.0,112420.0,0.00013994]
[1756911710213,1.78997791,112430.0,112420.0,0.00013994]
[1756911710655,1.69806192,112430.0,112420.0,0.00013994]
[1756911711534,1.54246192,112430.0,112420.0,0.00216994]
[1756911711762,1.50156342,112430.0,112420.0,0.00216994]
[1756911712000,0.61380445,112430.0,112420.0,0.00216994]
[1756911712185,0.77149445,112430.0,112420.0,0.00013994]
[1756911712619,1.74912941,112430.0,112420.0,0.00013994]
[1756911712833,0.88757926,112430.0,112420.0,0.00013994]
[1756911713044,1.74912941,112430.0,112420.0,0.00013994]
[1756911713668,0.79243327,112430.0,112420.0,0.00216994]
[1756911713885,0.76940445,112430.0,112420.0,0.00216994]
[1756911714082,0.77149445,112430.0,112420.0,0.00216994]
[1756911714898,0.77149445,112430.0,112420.0,0.00013994]
[1756911715102,0.77472445,112430.0,112420.0,0.00013994]
[1756911715324,1.74912941,112430.0,112420.0,0.00013994]
[1756911715521,1.5023139,112430.0,112420.0,0.00013994]
[1756911715728,0.79243327,112430.0,112420.0,0.00216994]
[1756911715935,1.40716791,112430.0,112420.0,0.00216994]
[1756911716144,1.40507791,112430.0,112420.0,0.00216994]
[1756911717142,0.79566327,112430.0,112420.0,0.00013994]
[1756911717351,1.41039791,112430.0,112420.0,0.00216994]
[1756911717801,1.40716791,112430.0,112420.0,0.00216994]
[1756911719648,1.4990839,112430.0,112420.0,0.00216994]
[1756911719873,1.5023139,112430.0,112420.0,0.00013994]
[1756911720291,0.79566327,112430.0,112420.0,0.00013994]
[1756911720513,0.61380445,112430.0,112420.0,0.00518994]
[1756911720836,0.61380445,112430.0,112420.0,0.18309422]
[1756911720837,0.52188846,112430.0,112420.0,0.18309422]
[1756911721056,0.67748846,112430.0,112420.0,0.00518994]
[1756911721181,1.38945909,112430.0,112420.0,0.00013994]
[1756911721393,1.5023139,112430.0,112420.0,0.00013994]
[1756911721833,1.4983139,112430.0,112420.0,0.00013994]
[1756911722080,1.4993139,112430.0,112420.0,0.00013994]
[1756911722287,1.5340239,112430.0,112420.0,0.00013994]
[1756911722493,1.56077628,112430.0,112420.0,0.00013994]
[1756911722668,1.55877628,112430.0,112420.0,0.00013994]
[1756911723629,1.56077628,112430.0,112420.0,0.00013994]
[1756911723949,1.55977628,112430.0,112420.0,0.00013994]
[1756911724173,1.57645596,112430.0,112420.0,0.00013994]
[1756911724372,1.29922997,112430.0,112420.0,0.00013994]
[1756911724586,1.45182997,112430.0,112420.0,0.00013994]
[1756911725043,1.45582997,112430.0,112420.0,0.00013994]
[1756911725247,1.30022997,112430.0,112420.0,0.00013994]
[1756911725490,1.29823489,112430.0,112420.0,0.00013994]
[1756911725664,1.42777291,112430.0,112420.0,0.00013994]
[1756911725881,1.45271173,112430.0,112420.0,0.00013994]
[1756911726101,1.43177291,112430.0,112420.0,0.00013994]
[1756911726445,1.45271173,112430.0,112420.0,0.00013994]
[1756911726859,1.44871173,112430.0,112420.0,0.00013994]
[1756911727289,1.29307173,112430.0,112420.0,0.00013994]
[1756911727514,1.25347791,112430.0,112420.0,0.00216994]
[1756911727735,1.40507791,112430.0,112420.0,0.00518994]
[1756911727948,1.40807791,112430.0,112420.0,0.00216994]
[1756911728140,1.5020839,112430.0,112420.0,0.00216994]
[1756911728344,1.5020839,112430.0,112420.0,0.00013994]
[1756911728345,1.5053139,112430.0,112420.0,0.00013994]
[1756911728602,1.52199864,112430.0,112420.0,0.00013994]
[1756911728829,1.54122119,112430.0,112420.0,0.00013994]
[1756911729048,1.55182282,112430.0,112420.0,0.00013994]
[1756911729392,1.55482282,112430.0,112420.0,0.00013994]
[1756911729606,1.54856435,112430.0,112420.0,0.00013994]
[1756911729928,1.52099997,112430.0,112420.0,0.00013994]
[1756911730483,1.36539997,112430.0,112420.0,0.00013994]
[1756911730689,1.42908398,112430.0,112420.0,0.00214994]
[1756911730888,1.42376398,112430.0,112420.0,0.00214994]
[1756911731086,0.63674327,112430.0,112420.0,0.00214994]
[1756911731292,0.79234327,112430.0,112420.0,0.00522994]
[1756911731476,0.79234327,112430.0,112420.0,0.00214994]
[1756911731886,0.63674327,112430.0,112420.0,0.00522994]
[1756911732085,0.79234327,112430.0,112420.0,0.00522994]
[1756911733178,0.77140445,112430.0,112420.0,0.00522994]
[1756911734684,0.76840445,112430.0,112420.0,0.00214994]
[1756911735125,0.77040445,112430.0,112420.0,0.00522994]
[1756911735329,0.76740445,112430.0,112420.0,0.00522994]
[1756911735760,0.76740445,112430.0,112420.0,0.18313422]
[1756911735958,0.76740445,112430.0,112420.0,0.00522994]
[1756911737019,0.17988846,112430.0,112420.0,0.79786886]
[1756911737236,0.18404577,112440.0,112430.0,0.17788846]
[1756911737237,0.52404577,112440.0,112430.0,0.17788846]
[1756911737449,0.00617173,112440.0,112430.0,0.18297846]
[1756911737683,0.3362519,112440.0,112430.0,0.18297846]
[1756911737887,0.33347264,112440.0,112430.0,0.18297846]
[1756911738337,0.33547264,112440.0,112430.0,0.18297846]
[1756911738549,0.33747264,112440.0,112430.0,0.00509]
[1756911738755,0.33747264,112440.0,112430.0,0.18297846]
[1756911738959,0.34169397,112440.0,112430.0,0.18297846]
[1756911739597,0.34169397,112440.0,112430.0,0.00201]
[1756911739799,0.17788846,112430.0,112420.0,0.00321994]
[1756911740096,0.33344846,112430.0,112420.0,0.00321994]
[1756911740320,0.33344846,112430.0,112420.0,0.00522994]
[1756911740849,0.33344846,112430.0,112420.0,0.00622994]
[1756911741274,0.15556,112430.0,112420.0,0.18413422]
[1756911741543,0.18209397,112440.0,112430.0,0.17788846]
[1756911741746,0.33765397,112440.0,112430.0,0.17989846]
[1756911741955,0.33765397,112440.0,112430.0,0.00509]
[1756911742368,0.33765397,112440.0,112430.0,0.18297846]
[1756911742989,0.15978133,112440.0,112430.0,0.18297846]
[1756911743343,0.33343264,112440.0,112430.0,0.18297846]
[1756911743557,0.33343264,112440.0,112430.0,0.00509]
[1756911743779,0.0684,112450.0,112440.0,0.17787264]
[1756911743990,0.17791418,112460.0,112440.0,0.18296264]
[1756911744195,0.28196215,112470.0,112450.0,0.00308]
[1756911744393,0.34713761,112470.0,112460.0,0.00201]
[1756911744626,0.50269761,112470.0,112460.0,0.00201]
[1756911744756,0.50472761,112470.0,112450.0,0.17785682]
[1756911744958,0.17784101,112460.0,112450.0,0.17785682]
[1756911745166,0.004,112450.0,112440.0,0.79568728]
[1756911745363,0.17985682,112450.0,112440.0,0.18095264]
[1756911745632,0.00427901,112460.0,112440.0,0.18310258]
[1756911745843,0.00427901,112460.0,112450.0,0.18093682]
[1756911746056,0.31587599,112470.0,112460.0,0.17784101]
[1756911746057,0.34,112470.0,112460.0,0.17784101]
[1756911746277,0.002,112470.0,112460.0,0.18293101]
[1756911746487,0.15756,112470.0,112460.0,0.18293101]
[1756911746717,0.16182046,112470.0,112460.0,0.18293101]
[1756911746918,0.00926046,112470.0,112460.0,0.18293101]
[1756911747131,0.16182046,112470.0,112460.0,0.18293101]
[1756911747345,0.16259897,112470.0,112460.0,0.18293101]
[1756911747549,0.16082046,112470.0,112460.0,0.18293101]
[1756911748203,0.33864565,112470.0,112460.0,0.18293101]
[1756911748769,0.16182046,112470.0,112460.0,0.18293101]
[1756911748966,0.34242416,112470.0,112460.0,0.18293101]
[1756911749180,0.33964565,112470.0,112460.0,0.18293101]
[1756911749401,0.16182046,112470.0,112460.0,0.18293101]
[1756911749596,0.34242416,112470.0,112460.0,0.18293101]
[1756911749798,0.33964565,112470.0,112460.0,0.17985101]
[1756911750198,0.33964565,112470.0,112460.0,0.18293101]
[1756911750645,0.33964565,112470.0,112460.0,0.17985101]
[1756911751269,0.33964565,112470.0,112460.0,0.00201]
[1756911751483,0.33960565,112470.0,112460.0,0.17985101]
[1756911751856,0.002,112470.0,112460.0,0.79766565]
[1756911752059,0.002,112470.0,112460.0,0.18293101]
[1756911752258,0.17982519,112470.0,112460.0,0.79458565]
[1756911752462,0.18185519,112470.0,112460.0,0.79458565]
[1756911752713,0.18185519,112470.0,112460.0,0.17985101]
[1756911753346,0.18612659,112470.0,112460.0,0.17985101]
[1756911753776,0.18512659,112470.0,112460.0,0.17985101]
[1756911754185,0.18831659,112470.0,112450.0,0.79567146]
[1756911754402,0.18831659,112470.0,112450.0,0.33337682]
[1756911754620,0.18831659,112470.0,112460.0,0.001]
[1756911754820,0.36728627,112470.0,112460.0,0.001]
[1756911755019,0.36628627,112470.0,112460.0,0.001]
[1756911755482,0.17785682,112450.0,112440.0,0.8718563]
[1756911755692,0.17785682,112450.0,112440.0,0.00214994]
[1756911755899,0.18307682,112450.0,112440.0,0.4718563]
[1756911756121,0.18307682,112450.0,112440.0,0.65173894]
[1756911756332,0.18307682,112450.0,112440.0,0.18002258]
[1756911756567,0.18307682,112450.0,112440.0,0.65173894]
[1756911756793,0.17988682,112450.0,112440.0,0.18002258]
[1756911756979,0.17785682,112450.0,112440.0,0.65173894]
[1756911757430,0.28809383,112470.0,112450.0,0.17785682]
[1756911757646,0.61720814,112470.0,112450.0,0.17785682]
[1756911757869,0.67757659,112470.0,112460.0,0.17985101]
[1756911758093,0.67960659,112470.0,112460.0,0.00201]
[1756911758305,0.67960659,112470.0,112460.0,0.17985101]
[1756911761930,0.17785682,112450.0,112440.0,0.95384058]
[1756911762135,0.17785682,112450.0,112440.0,0.94960058]
[1756911762495,0.17985682,112450.0,112440.0,0.94960058]
[1756911762689,0.17985682,112450.0,112440.0,0.33548258]
[1756911762892,0.33749101,112460.0,112450.0,0.17785682]
[1756911762893,0.33432101,112460.0,112450.0,0.17785682]
[1756911763138,0.33432101,112460.0,112450.0,0.17984682]
[1756911763335,0.33532101,112460.0,112450.0,0.00199]
[1756911763539,0.33949101,112460.0,112440.0,0.95085058]
[1756911764013,0.34049101,112460.0,112450.0,0.17785682]
[1756911764180,0.33732101,112460.0,112450.0,0.17984682]
[1756911764392,0.33632101,112460.0,112450.0,0.00199]
[1756911764634,0.33632101,112460.0,112440.0,0.95081058]
[1756911764909,0.33849101,112460.0,112440.0,0.33669258]
[1756911765119,0.34049101,112460.0,112440.0,0.33669258]
[1756911765319,0.33949101,112460.0,112450.0,0.17785682]
[1756911765519,0.33949101,112460.0,112450.0,0.17984682]
[1756911765755,0.15744,112460.0,112450.0,0.17984682]
[1756911765948,0.002,112460.0,112450.0,0.79720482]
[1756911766369,0.18184101,112460.0,112450.0,0.79396482]
[1756911766572,0.18084101,112460.0,112450.0,0.94940482]
[1756911766814,0.18184101,112460.0,112450.0,0.94940482]
[1756911766994,0.001,112460.0,112450.0,0.95264482]
[1756911767196,0.001,112460.0,112450.0,0.33852682]
[1756911767425,0.002,112460.0,112450.0,0.33852682]
[1756911767636,0.002,112460.0,112450.0,0.95264482]
[1756911767835,0.001,112460.0,112450.0,0.95264482]
[1756911768039,0.002,112460.0,112450.0,0.95264482]
[1756911768738,0.002,112460.0,112450.0,0.33852682]
[1756911768952,0.002,112460.0,112450.0,0.95264482]
[1756911769819,0.001,112460.0,112450.0,0.95264482]
[1756911770696,0.18209707,112470.0,112460.0,0.17784101]
[1756911770872,0.18409707,112470.0,112460.0,0.17983101]
[1756911771310,0.0062714,112470.0,112460.0,0.17983101]
[1756911771520,0.0042714,112470.0,112460.0,0.17983101]
[1756911771700,0.7822103,112480.0,112460.0,0.17983101]
[1756911771844,0.3453103,112480.0,112460.0,0.17983101]
[1756911772076,0.17782519,112470.0,112460.0,0.17983101]
[1756911772264,0.17982519,112470.0,112460.0,0.17983101]
[1756911772874,0.17882519,112470.0,112460.0,0.17983101]
[1756911773082,0.18408974,112470.0,112460.0,0.17983101]
[1756911773907,0.00826455,112470.0,112460.0,0.17983101]
[1756911774105,0.002,112470.0,112460.0,0.79394901]
[1756911774315,0.002,112470.0,112460.0,0.79718901]
[1756911774735,0.17982519,112470.0,112460.0,0.79718901]
[1756911775753,0.18499519,112470.0,112460.0,0.15739]
[1756911776168,0.18499519,112470.0,112460.0,0.00199]
[1756911776813,0.17784101,112460.0,112450.0,0.33325682]